[Event "6th Vergani Cup January 2022"]
[Site "Cattolica"]
[Date "2022.01.02"]
[Round "1.10"]
[White "Frank, Emanuel"]
[Black "Iniyan, P."]
[Result "1/2-1/2"]
[ECO "E91"]
[WhiteElo "2180"]
[BlackElo "2540"]
[Annotator "ChessBase"]
[PlyCount "81"]
[EventDate "2022.01.02"]
[EventType "swiss"]
[EventCountry "ITA"]
[SourceTitle "playchess.com"]
[Source "ChessBase"]
[SourceQuality "1"]
[TimeControl "40/5400+30:900+30"]

1. d4 {[%emt 0:00:03]} Nf6 {[%emt 0:00:20]} 2. c4 {[%emt 0:00:06]} g6 {[%emt 0:00:07]} 3. Nc3 {[%emt 0:00:05]} Bg7 {[%emt 0:00:05]} 4. e4 {[%emt 0:00:15]} d6 {[%emt 0:00:05]} 5. Nf3 {[%emt 0:00:04]} O-O {[%emt 0:00:07]} 6. Be2 {[%emt 0:00:15]} Na6 {[%emt 0:00:05]} 7. Bf4 {[%emt 0:00:05]} Nh5 {[%emt 0:01:34]} 8. Bg5 {[%emt 0:00:46]} Qe8 {[%emt 0:02:40]} 9. O-O {[%emt 0:08:28]} e5 {[%emt 0:00:55]} 10. Qd2 {[%emt 0:14:04]} f6 {[%emt 0:02:28]} 11. Be3 {[%emt 0:04:08]} f5 {[%emt 0:00:10]} 12. exf5 {[%emt 0:01:48]} gxf5 {[%emt 0:02:32]} 13. Bg5 {[%emt 0:16:24]} c6 {[%emt 0:03:01]} 14. g3 {[%emt 0:05:11]} Nf6 {[%emt 0:07:12]} 15. dxe5 {[%emt 0:11:55]} Ne4 {[%emt 0:05:45]} 16. Nxe4 {[%emt 0:01:03]} fxe4 {[%emt 0:00:07]} 17. Nh4 {[%emt 0:01:56]} Qxe5 {[%emt 0:03:18]} 18. Rad1 {[%emt 0:02:13]} Bh3 {[%emt 0:07:23]} 19. Ng2 {[%emt 0:06:48]} Qxb2 {[%emt 0:06:12]} 20. Qxb2 {[%emt 0:04:16]} Bxb2 {[%emt 0:00:08]} 21. Rxd6 {[%emt 0:01:45]} Be5 {[%emt 0:03:18]} 22. Rh6 {[%emt 0:02:52]} Bf5 {[%emt 0:00:16]} 23. Nh4 {[%emt 0:03:50]} Bh3 {[%emt 0:08:54]} 24. Ng2 {[%emt 0:01:29]} Bf5 {[%emt 0:01:57]} 25. Nh4 {[%emt 0:00:04]} Bg7 {[%emt 0:00:04]} 26. Rd6 {[%emt 0:01:20]} Bh3 {[%emt 0:00:21]} 27. Rb1 {[%emt 0:01:49]} Be5 {[%emt 0:00:08]} 28. Rd2 {[%emt 0:02:33]} Bc3 {[%emt 0:01:17]} 29. Rdd1 {[%emt 0:01:46]} b6 {[%emt 0:00:45]} 30. Rb3 {[%emt 0:01:27]} Bb4 {[%emt 0:03:27]} 31. g4 {[%emt 0:02:13]} Bc5 {[%emt 0:00:05]} 32. Nf5 {[%emt 0:00:37]} Rxf5 {[%emt 0:00:26]} 33. gxf5 {[%emt 0:00:01]} Bxf5 {[%emt 0:00:11]} 34. Rg3 {[%emt 0:01:12]} Kf7 {[%emt 0:00:07]} 35. Bg4 {[%emt 0:01:11]} Bxg4 {[%emt 0:00:29]} 36. Rxg4 {[%emt 0:00:01]} Rg8 {[%emt 0:00:08]} 37. h3 {[%emt 0:02:32]} h5 {[%emt 0:01:39]} 38. Rf4+ {[%emt 0:02:17]} Ke6 {[%emt 0:00:03]} 39. h4 {[%emt 0:00:25]} Ke5 {[%emt 0:00:22]} 40. Rf7 {[%emt 0:00:39]} Nb4 {[%emt 0:00:39]} 41. Kf1 {[%emt 0:09:10]} 1/2-1/2